Cogmind - Beta 14 @@@ ROGUE MODE // 2024.10.11 @ 10:55:27 Player: JetmanJay Result: Self-destructed Performance ------------- Evolutions (3) 1500 Regions Visited (5) 1000 Robots Destroyed (64) 320 Value Destroyed (1619) 1619 Prototype IDs (3) 60 Alien Tech Used (0) 0 Bonus (11) 11 TOTAL SCORE: 4510 Bonus ------- High Alert Combat Kills 11 Cogmind --------- Core Integrity 177/700 Matter 45/300 Energy 450/450 System Corruption 9% Temperature Cool (0) Movement Walking (480) Ox5 Location -7/Factory Parts ------- > --- POWER (4) -------- Deuterium Engine Deuterium Engine > --- PROPULSION (3) --- Improved Titanium Leg > --- UTILITY (3) ------ Huge Storage Unit Structural Scanner > --- WEAPON (3) ------- Advanced Assault Cannon > --- INVENTORY (25) --- Deuterium Engine Rocket Array Peak State ------------ > --- POWER ------------ Deuterium Engine Deuterium Engine Deuterium Engine Light Nuclear Core > --- PROPULSION ------- Carbon-fiber Leg Carbon-fiber Leg Improved Titanium Leg > --- UTILITY ---------- Improved Heat Sink Targeting Computer Hardlight Generator > --- WEAPON ----------- Advanced Assault Cannon Rocket Array Rocket Array > --- INVENTORY -------- Deuterium Engine Lightning Gun Heavy Particle Gun Heavy Particle Gun Rocket Array [Rating: 45] Favorites ----------- Power Deuterium Engine Engine Deuterium Engine Power Core Light Nuclear Core Propulsion Aluminum Leg Treads Light Treads Leg Aluminum Leg Wheel Wheel Utility Improved Heat Sink Device Improved Heat Sink Storage Medium Battery Processor Targeting Computer Protection Power Shielding Weapon Medium Laser Energy Gun Medium Laser Energy Cannon Beam Cannon Ballistic Gun Light Assault Rifle Ballistic Cannon Assault Cannon Launcher Rocket Array Build | -11 -10 -10 -9 -8 -7 ------- Run | Yrd Mat Min Mat Mat Fac Slots Evolved 6 | . . . 2 2 2 Power 3 | . . . 1 1 1 Propulsion 1 | . . . . . 1 Utility 1 | . . . 1 . . Weapon 1 | . . . . 1 . Parts Attached 65 | 6 7 . 15 14 23 Power 17 | 1 . . 7 6 3 Engine 15 | 1 . . 7 4 3 Core 2 | . . . . 2 . Reactor . | . . . . . . Propulsion 15 | 2 2 . 4 2 5 Treads 4 | . 2 . 2 . . Leg 10 | 2 . . 2 2 4 Wheel 1 | . . . . . 1 Hover . | . . . . . . Flight . | . . . . . . Utility 12 | 1 4 . 1 4 2 Device 5 | . 1 . . 3 1 Storage 5 | 1 2 . 1 . 1 Processor 1 | . . . . 1 . Hackware . | . . . . . . Protection 1 | . 1 . . . . Artifact . | . . . . . . Weapon 21 | 2 1 . 3 2 13 Energy Gun 9 | 1 . . 1 1 6 Energy Cannon 1 | . 1 . . . . Ballistic Gun 2 | 1 . . 1 . . Ballistic Cannon 4 | . . . 1 1 2 Launcher 5 | . . . . . 5 Special Weapon . | . . . . . . Impact Weapon . | . . . . . . Slashing Weapon . | . . . . . . Piercing Weapon . | . . . . . . Special Melee Weapon . | . . . . . . Unidentified Prototypes 3 | . . . . . 3 Parts Lost 15 | . 2 . 3 . 10 Power 2 | . . . . . 2 Propulsion 4 | . 2 . 1 . 1 Utility 3 | . . . . . 3 Weapon 6 | . . . 2 . 4 Highest Loss Streak 5 | . 2 . 3 . 5 To Critical Strikes 1 | . . . 1 . . Average Slot Usage (%) 93 | . 99 100 97 97 84 Engine 17 | . 14 14 22 16 19 Core 3 | . . . . 8 5 Treads 6 | . 12 28 9 . . Leg 15 | . 15 . 9 18 19 Device 12 | . 5 14 11 17 13 Storage 6 | . 17 . 11 . 1 Processor 1 | . . . . 1 4 Protection 5 | . 4 14 11 7 . Energy Gun 9 | . 5 . 10 18 8 Energy Cannon 2 | . 8 14 . . . Ballistic Gun 4 | . 14 14 4 . . Ballistic Cannon 3 | . . . 6 9 1 Launcher 3 | . . . . . 8 Peak Build Rating 45 | 6 9 9 14 29 45 Average Rating 20 | 4 7 9 12 23 34 On Entrance 11 | . 6 9 9 14 29 Naked Turns . | . . . . . . Heaviest Build 119 | 11 20 9 19 37 119 Greatest Support 50 | 20 40 40 40 30 50 Greatest Overweight (x) 6 | . . . 6 2 5 Average Overweight (x) . | . . . . 1 . Largest Inventory Capacity 25 | 8 10 5 5 5 25 Average Capacity 6 | 6 7 5 5 5 8 Most Carried 7 | 4 7 4 5 5 5 Average Carried 4 | 1 4 4 4 4 3 Final Capacity 25 | 8 5 5 5 5 25 Final Carried 5 | 4 4 4 4 5 2 Class Distribution -------------------- 41% | Mutant 25% | Gunner 16% | Scavenger-Mutant 8% | Scavenger-Tank 7% | Scavenger-Gunner Dominant Class ---------------- Mutant | -10/Materials Mutant | -10/Mines Scavenger-Mutant | -9/Materials Scavenger-Tank | -8/Materials Gunner | -7/Factory Resources | -11 -10 -10 -9 -8 -7 ----------- Run | Yrd Mat Min Mat Mat Fac Matter Collected 1473 | 206 283 19 281 280 404 Remotely . | . . . . . . Salvage Created 1777 | . 335 33 404 378 627 Parts 116 | . 20 2 41 24 29 Haulers Intercepted . | . . . . . . Recyclers Shooed . | . . . . . . Parts Field Recycled . | . . . . . . Retrieved Matter . | . . . . . . Parts Self-Destructed . | . . . . . . Prevented . | . . . . . . Kills | -11 -10 -10 -9 -8 -7 ------- Run | Yrd Mat Min Mat Mat Fac Combat Hostiles Destroyed 45 | . 8 2 14 6 15 Guns 21 | . 5 . 9 4 3 Cannons 13 | . 2 2 5 2 2 AOE 11 | . 1 . . . 10 Classes Destroyed 12 | . 5 . 1 3 3 Worker 1 | . . . . . 1 Builder 5 | . 1 . 1 . 3 Tunneler 1 | . . . . 1 . Recycler 4 | . 1 . 1 . 2 Operator 1 | . . . . 1 . Watcher 7 | . 1 . 2 4 . Swarmer 22 | . 5 2 10 2 3 Grunt 16 | . 3 . 3 2 8 Brawler 1 | . . . . 1 . Duelist 1 | . . . . . 1 Sentry 3 | . . . 1 1 1 Programmer 2 | . . . . . 2 Best Kill Streak 11 | . 4 2 11 5 11 Combat Bots Only 9 | . 2 2 9 3 6 Max Kills in Single Turn 3 | . 3 1 2 1 3 Gunslinging . | . . . . . . Exploded 3 | . 1 . . . 3 Melee . | . . . . . . Uniques/NPCs Destroyed . | . . . . . . Combat | -11 -10 -10 -9 -8 -7 -------- Run | Yrd Mat Min Mat Mat Fac Hostile Shots Fired 452 | . 91 16 103 29 213 Missed 171 | . 35 6 39 7 84 Damage Taken 2970 | . 554 88 558 194 1576 Core 725 | . 99 15 88 . 523 Absorbed by Shields 300 | . . . . 64 236 Redirected to Shielding 41 | . . . 27 14 . Core Remaining (%) 83 | 100 . 54 78 100 . Volleys Fired 157 | . 35 9 47 30 36 Largest 3 | . 2 2 2 3 3 Hottest 155 | . 80 80 94 139 155 Shots Fired 345 | . 70 18 86 83 88 Gun 225 | . 52 9 52 53 59 Cannon 103 | . 18 9 34 30 12 Launcher 17 | . . . . . 17 Special . | . . . . . . Kinetic 133 | . 35 9 47 30 12 Thermal 130 | . 18 9 39 30 34 Explosive 17 | . . . . . 17 Electromagnetic 65 | . 17 . . 23 25 Robot Hit Streak 8 | . 6 3 8 5 8 Robot Miss Streak 7 | . 7 2 6 3 7 Penetration Max . | . . . . . . Secondary Targets . | . . . . . . Shots Hit Robots 167 | . 34 7 39 33 54 Core Hits 120 | . 13 2 23 18 64 Critical Kills . | . . . . . . Critical Parts Destroyed . | . . . . . . Critical Strikes 4 | . 1 . 1 1 1 Burn 2 | . . . 1 . 1 Corrupt 2 | . 1 . . 1 . Melee Attacks . | . . . . . . Impact . | . . . . . . Slashing . | . . . . . . Piercing . | . . . . . . Sneak Attacks . | . . . . . . Combat Hostiles . | . . . . . . Follow-up Attacks . | . . . . . . Damage Inflicted 4078 | . 555 101 671 726 2025 Guns 1459 | . 286 33 292 349 499 Cannons 1056 | . 122 68 379 377 110 Explosions 1563 | . 147 . . . 1416 Melee . | . . . . . . Ramming . | . . . . . . Kinetic 1079 | . 125 33 434 377 110 Thermal 1031 | . 269 68 237 129 328 Explosive 1416 | . . . . . 1416 Electromagnetic 552 | . 161 . . 220 171 Impact . | . . . . . . Slashing . | . . . . . . Piercing . | . . . . . . Highest Corruption 9 | . . . . . 9 Average Corruption 3 | . . . . . 3 Corruption Purged . | . . . . . . Corruption Blocked . | . . . . . . Effects 17 | . . . . . 17 Message Errors 1 | . . . . . 1 Matter Fused 5 | . . . . . 5 Heat Flow Errors 6 | . . . . . 6 Data Loss (minor) 1 | . . . . . 1 Data Loss (major) 2 | . . . . . 2 Misfires 1 | . . . . . 1 Weapon Failures 1 | . . . . . 1 Overload Shots . | . . . . . . Overflow Damage 106 | . 14 . 3 48 41 Projectiles 51 | . . . 3 48 . Explosions 55 | . 14 . . . 41 Melee . | . . . . . . Knockbacks 3 | . . . 1 2 . Impact . | . . . . . . Kinetic 3 | . . . 1 2 . Secondary . | . . . . . . Self-Inflicted Damage 96 | . . . . . 96 Shots 5 | . . . . . 5 Rammed . | . . . . . . Targets Rammed 1 | . 1 . . . . Kicked 1 | . 1 . . . . Crushed . | . . . . . . Highest Temperature 594 | . 160 24 16 428 594 Average Temperature 138 | . 68 11 5 191 177 Received Heat Transfer 509 | . 174 9 33 84 209 Effects 25 | . . . . 6 19 Shutdowns 11 | . . . . 3 8 Energy Bleed 1 | . . . . . 1 Interference 5 | . . . . 2 3 Short Circuit 4 | . . . . 1 3 Damage (major) 2 | . . . . . 2 Damage (core) 2 | . . . . . 2 Siege Activations . | . . . . . . Robots Corrupted . | . . . . . . Combat Hostiles . | . . . . . . Parts Fried 2 | . . . . 2 . Impact Corruptions . | . . . . . . Robots Melted . | . . . . . . Combat Hostiles . | . . . . . . Parts Melted 3 | . . . . . 3 Heat Transferred 2494 | . 459 148 777 370 740 Parts Sabotaged . | . . . . . . Parts Stolen . | . . . . . . Parts Stripped . | . . . . . . Power Chain Reactions 2 | . 2 . . . . Alert | -11 -10 -10 -9 -8 -7 ------- Run | Yrd Mat Min Mat Mat Fac Peak Influence 520 | . 252 84 245 332 520 Initial 103 | . . 19 32 103 87 Average 146 | . 85 49 133 177 202 Maximum Alert Level 2 | . 1 . 1 1 2 Low Security (%) 78 | 100 87 100 75 87 65 Level 1 19 | . 12 . 24 12 29 Level 2 1 | . . . . . 4 Level 3 . | . . . . . . Level 4 . | . . . . . . Level 5 . | . . . . . . High Security . | . . . . . . Max Security . | . . . . . . Squads Dispatched 8 | . 2 . 3 . 3 Investigation 3 | . 1 . 1 . 1 Extermination 1 | . . . . . 1 Reinforcement 4 | . 1 . 2 . 1 Assault . | . . . . . . Garrison . | . . . . . . Intercept . | . . . . . . Searches Triggered . | . . . . . . Construction Impeded 1 | . . . . . 1 Haulers Reinforced . | . . . . . . Active Scanning Responses . | . . . . . . Cargo Convoy Interrupts . | . . . . . . Stealth | -11 -10 -10 -9 -8 -7 --------- Run | Yrd Mat Min Mat Mat Fac Distress Signals 3 | . . . 2 1 . Communications Jammed . | . . . . . . Distress Signals . | . . . . . . Times Spotted 67 | . 12 4 20 16 15 Peak Tracking Total 6 | . 4 2 6 6 5 Tactical Retreats 5 | . 2 1 1 1 . Traps | -11 -10 -10 -9 -8 -7 ------- Run | Yrd Mat Min Mat Mat Fac Traps Triggered 2 | . 1 . . . 1 Indirectly . | . . . . . . Trap Hack Attempts . | . . . . . . Triggered . | . . . . . . Disarmed . | . . . . . . Reprogrammed . | . . . . . . Reused . | . . . . . . Traps Extracted . | . . . . . . Installed . | . . . . . . Triggered . | . . . . . . Machines | -11 -10 -10 -9 -8 -7 ---------- Run | Yrd Mat Min Mat Mat Fac Machines Disabled 9 | . . . . 1 8 Max in Single Turn 6 | . . . . 1 6 Machines Repaired . | . . . . . . Machines Dismantled . | . . . . . . Machines Sabotaged . | . . . . . . Overloaded Fab Kills . | . . . . . . Hacking | -11 -10 -10 -9 -8 -7 --------- Run | Yrd Mat Min Mat Mat Fac Machines Accessed 5 | . 1 . 2 . 2 Terminals 1 | . 1 . . . . Fabricators 1 | . . . . . 1 Repair Stations 1 | . . . . . 1 Recycling Units 1 | . . . 1 . . Scanalyzers 1 | . . . 1 . . Garrison Access . | . . . . . . Total Hacks 14 | . 3 . 7 . 4 Successful 9 | . 2 . 5 . 2 Failed 5 | . 1 . 2 . 2 Catastrophic 1 | . . . . . 1 Database Lockouts . | . . . . . . Manual . | . . . . . . Terminals 3 | . 3 . . . . Fabricators 1 | . . . . . 1 Repair Stations 3 | . . . . . 3 Recycling Units 2 | . . . 2 . . Scanalyzers 5 | . . . 5 . . Garrison Access . | . . . . . . Terminal Hacks 2 | . 2 . . . . Record 2 | . 2 . . . . Fabricator Hacks . | . . . . . . Repair Station Hacks 2 | . . . . . 2 Scan Component 2 | . . . . . 2 Recycling Unit Hacks 2 | . . . 2 . . Retrieve Matter 2 | . . . 2 . . Scanalyzer 3 | . . . 3 . . Insert Component 1 | . . . 1 . . Analyze 2 | . . . 2 . . Garrison Access Hacks . | . . . . . . Unauthorized Hacks . | . . . . . . Terminals . | . . . . . . Fabricators . | . . . . . . Repair Stations . | . . . . . . Recycling Units . | . . . . . . Scanalyzers . | . . . . . . Garrison Access . | . . . . . . Data Cores Recovered . | . . . . . . Used . | . . . . . . Hacking Detections 3 | . . . 1 . 2 Full Trace Events 2 | . . . 1 . 1 Feedback Events 1 | . . . . . 1 Corruption 1 | . . . . . 1 Feedback Blocked . | . . . . . . Robot Schematics Acquired . | . . . . . . Robots Built . | . . . . . . Authchips . | . . . . . . Time . | . . . . . . Total Robot Build Rating . | . . . . . . Part Schematics Acquired 1 | . . . 1 . . Parts Built . | . . . . . . Authchips . | . . . . . . Time . | . . . . . . Total Part Build Rating . | . . . . . . Parts Repaired . | . . . . . . Time . | . . . . . . Parts Recycled . | . . . . . . Recycled Matter . | . . . . . . Retrieved Matter . | . . . . . . Retrieved Components . | . . . . . . Parts Scanalyzed 1 | . . . 1 . . Part Schematics Acquired 1 | . . . 1 . . Parts Damaged . | . . . . . . Bothacking | -11 -10 -10 -9 -8 -7 ------------ Run | Yrd Mat Min Mat Mat Fac Used RIF Installer . | . . . . . . Robots Hacked . | . . . . . . Non-combat . | . . . . . . Combat . | . . . . . . Robot Hacks Applied . | . . . . . . Relay Couplers Released . | . . . . . . Fabnet Peak Effective % . | . . . . . . Robots Rewired . | . . . . . . Allies Hacked . | . . . . . . Hacks Repelled . | . . . . . . Allies | -11 -10 -10 -9 -8 -7 -------- Run | Yrd Mat Min Mat Mat Fac Total Allies . | . . . . . . Largest Group . | . . . . . . Highest-Rated Group . | . . . . . . Highest-Rated Ally . | . . . . . . Total Orders . | . . . . . . Ally Attacks . | . . . . . . Total Damage . | . . . . . . Kills . | . . . . . . Allies Corrupted . | . . . . . . Allies Melted . | . . . . . . Intel | -11 -10 -10 -9 -8 -7 ------- Run | Yrd Mat Min Mat Mat Fac Robot Analysis Total . | . . . . . . Derelict Logs Recovered . | . . . . . . Drone Launches . | . . . . . . Drone Recoveries . | . . . . . . Exploration | -11 -10 -10 -9 -8 -7 ------------- Run | Yrd Mat Min Mat Mat Fac Turns Passed 3030 | 62 628 182 583 564 1011 Spaces Moved 1477 | 44 373 99 293 229 439 Core 10 | 9 . . 1 . . Treads 403 | . 158 99 146 . . Legs 1064 | 35 215 . 146 229 439 Wheels . | . . . . . . Hover . | . . . . . . Flight . | . . . . . . Fastest Speed 50 | 50 120 160 120 190 120 Average Speed 162 | 105 136 160 140 190 190 Slowest Speed 480 | 120 160 160 350 260 480 Overloaded Moves . | . . . . . . Propulsion Burnouts . | . . . . . . Robots Hopped . | . . . . . . Cave-ins Triggered . | . . . . . . Exploration Rate (%) 25 | 3 59 20 32 27 13 Regions Visited 5 Branch Regions 1 Pre-discovered Areas . | . . . . . . Known Exits Taken . | . . . . . . Unknown Exits Taken 5 | 1 1 1 1 1 . Scrap Searched . | . . . . . . Spaces Dug . | . . . . . . Terrain Destroyed 244 | . . . 11 6 227 Melee . | . . . . . . Projectile 18 | . . . 11 6 1 AOE 226 | . . . . . 226 Terrain Rammed . | . . . . . . Walls Destroyed . | . . . . . . Machines Disabled . | . . . . . . Actions | -11 -10 -10 -9 -8 -7 --------- Run | Yrd Mat Min Mat Mat Fac Total 1788 | 59 428 107 382 293 519 Wait . | . . . . . . Move 1472 | 43 372 98 292 228 439 Hop . | . . . . . . Pick Up 47 | 10 8 . 13 6 10 Fast Attach 24 | . . . 7 11 6 Attach 24 | 6 4 . 4 1 9 Detach . | . . . . . . Swap 17 | . 3 . 4 2 8 Drop 46 | . 5 . 15 15 11 Fire 157 | . 35 9 47 30 36 Melee . | . . . . . . Ram . | . . . . . . Kick 1 | . 1 . . . . Crush . | . . . . . . Escape Stasis . | . . . . . . Rewire . | . . . . . . Trap . | . . . . . . Miscellaneous . | . . . . . . Route ------- -11/Scrapyard -10/Materials (discovered 2 exits: *Mat / [*Min]) -10/Mines -9/Materials -8/Materials -7/Factory History --------- Turn | Location | Event 4 | -11/Scrapyard | Discovered new exit (range 15) 63 | -11/Scrapyard | Entered Materials 324 | -10/Materials | Build established: Mutant 365 | -10/Materials | Discovered new exit (range 16) 496 | -10/Materials | Discovered new exit (range 14) 691 | -10/Materials | Entered Mines 763 | -10/Mines | Discovered new exit (range 14) 873 | -10/Mines | Entered Materials 873 | -9/Materials | Evolved 2 slots: Power x1, Utility x1 945 | -9/Materials | Lost 3 parts (1n2w) 1271 | -9/Materials | Build established: Scavenger-Mutant 1337 | -9/Materials | Destroyed 9 combat bots 1438 | -9/Materials | Discovered new exit (range 16) 1456 | -9/Materials | Entered another Materials area 1456 | -8/Materials | Evolved 2 slots: Power x1, Weapon x1 2004 | -8/Materials | Discovered new exit (range 7) 2020 | -8/Materials | Entered Factory 2020 | -7/Factory | Evolved 2 slots: Power x1, Propulsion x1 2325 | -7/Factory | Found Prototype Launcher 2328 | -7/Factory | Found Prototype Launcher 2329 | -7/Factory | Identified Rocket Array (x2) 2336 | -7/Factory | Found Rocket Array 2453 | -7/Factory | Build established: Gunner 2794 | -7/Factory | Core integrity fell below 50% 2971 | -7/Factory | Lost 5 parts (1p1n1u2w) 3031 | -7/Factory | Self-destructed Last Messages --------------- U-05 Engineer lays Concrete. R-06 Scavenger collects Shock Rifle. K-01 Serf collects debris. U-05 Engineer lays Concrete. R-06 Scavenger collects Gravmag System. U-05 Engineer lays Concrete. K-01 Serf collects debris. U-05 Engineer lays Concrete. K-01 Serf collects debris. U-05 Engineer lays Concrete. K-01 Serf collects debris. U-05 Engineer lays Concrete. K-01 Serf collects debris. U-05 Engineer lays Concrete. Acquired 43 matter. U-05 Engineer lays Concrete. System corrupted: Heat flow error (+277). Overheating: System interference. Adv. Assault Cannon temporarily disabled. Acquired 2 matter. Map ----- +----------------------------------------------------+ | | | | | | | | | | | | | | | ????????????????####??????#####??????????????????? | | ???????????????# ## #### ?######???????????? | | ?????????????### ## # # ########?????????# | | ???????????### ### # # # ### #"############# | | ?????????? | | ??????????###+ ## ############ | | ??????????## ## # ????###### | | ??## ?????## ## # ????# | | ??## ?????## ## # ????# | | ??## ####### """ ## # ????# | | ?? # ####### """ ## # ????# "" | | ?? # + """ ## # ???# "" | | ?? # # #; # ??# "" | | ?? # # ! ## # ?# " | | ?? # ## ## # ## " | | # # # ##+#### | | #### # # / | | # #### | | # @ # ## | | ] # ! # # ## | | ]] #### ##+##+##### # # | | # ] # # # # # # = [ ## ## # | | # # ### # ## | | # """ #### # ## ############ | | # """ ^^^^^## ### # ## # # | | # """ ##### # + # """" """" # | | ? # ### # #### ??"" """" # | | ????""" # # # #### ??"" """" # | | ???? """ # ## ###########????????"""" # | | ??????"" #### ###### ???????? + | | ?????? #### ??????????????"""" # | | ?????? ???????????????" """" # | | ??????#### ##### ??????????????"" """" # | | ?????? # ##### #???????????"""" """" ?# | | ???????????? ???####+###???????????? # | | ???????????????????# ???????????? # | | ???????????????????????????????????????????# #/ # | | ???????????????????????????????????????????# ! | | ???????????????????????????????????????????# * | | ?????????????????????????????????????# / | | ????????????????????????????????????# | | ????????????????????????????????????## # | | ?????????????????????????????????????# """" | +----------------------------------------------------+ Best States ------------- Heat Dissipation 48 Energy Generation 41 Energy Capacity 685 Matter Stores 450 Matter Capacity 450 Sight Range 16 Terrain Scan Density 10 Power Shielding 33 Evasion (%) 55 Targeting Accuracy 5 Recoil Reduction 2 Particle Charging 15 Item Schematics ----------------- Assault Cannon | -9/Materials | Scanalyzed Robot Schematics ------------------ None Fabricated ------------ Nothing Alien Tech Used ----------------- None Achievements -------------- Maybe Next Time I'll Detach My Launcher Challenges ------------ None Game ------ Seed RefineryHellfirePerforator Manual? 0 Play Time 00:37:06 Cumulative 3.9 hours Start 2024.10.11 @ 10:18:31 End 2024.10.11 @ 10:55:27 Sessions 1 Manual Loads 0 Difficulty Rogue Special Mode None Game No. 8 Rogue 8 Adventurer 0 Explorer 0 Win Type - Total 0 Types 0/0/0/0/0/0/0/0/0 Lore% 4 Gallery% 9 Achievement% 10 Wizard Run 0 Options --------- Layout 1 ASCII 0 Keyboard 0 Movement Mouse Keybinds 0 Fullscreen 2 Font 24/Smallcaps Map View 50x35 Zoom Use 0% Tactical HUD 0 Map Filters NONE Filters NONE Steam 1 RUN: cd424131-a24f-4049-9b63-ac7e8f410f62